Cogmind - Beta 10.2 @@@ ROGUE MODE // 2021.03.08 @ 19:26:38 Player: The Phoenix Tome Result: Self-destructed Performance ------------- Evolutions (1) 500 Regions Visited (2) 400 Robots Destroyed (26) 130 Value Destroyed (418) 418 Prototype IDs (2) 40 Alien Tech Used (0) 0 Bonus (0) 0 TOTAL SCORE: 1488 Bonus ------- None Cogmind --------- Core Integrity 310/400 Matter 237/300 Energy 250/250 System Corruption 0% Temperature Cool (0) Movement Treading (180) Ox1 Location -9/Materials Parts ------- > --- POWER (1) -------- Ion Engine > --- PROPULSION (2) --- Light Treads Light Treads > --- UTILITY (4) ------ Heat Sink Large Storage Unit Large Storage Unit ECM Suite > --- WEAPON (2) ------- Assault Rifle Great Maul > --- INVENTORY (16) --- Ion Engine Light Treads Aluminum Leg Cryofiber Web Compact Battery (269) Improved Sensor Array Improved Signal Interpreter Target Analyzer Particle Charger Particle Cannon Particle Cannon Particle Cannon Grenade Launcher Datajack Great Maul Peak State ------------ > --- POWER ------------ Ion Engine > --- PROPULSION ------- Light Treads Light Treads > --- UTILITY ---------- Heat Sink Large Storage Unit Large Storage Unit ECM Suite > --- WEAPON ----------- Assault Rifle Great Maul > --- INVENTORY -------- Ion Engine Light Treads Aluminum Leg Cryofiber Web Compact Battery Improved Sensor Array Improved Signal Interpreter Target Analyzer Particle Charger Particle Cannon Particle Cannon Particle Cannon Grenade Launcher Datajack Great Maul [Rating: 14] Favorites ----------- Power Ion Engine Engine Ion Engine Propulsion Aluminum Leg Treads Light Treads Leg Aluminum Leg Utility Heat Sink Device Heat Sink Storage Large Storage Unit Weapon Assault Rifle Energy Gun Small Laser Ballistic Gun Assault Rifle Launcher Grenade Launcher Impact Weapon Great Maul Build | -11 -10 -9 ------- Run | Scr Mat Mat Slots Evolved 2 | . . 2 Power . | . . . Propulsion . | . . . Utility 2 | . . 2 Weapon . | . . . Parts Attached 17 | . 7 10 Power 2 | . 1 1 Engine 2 | . 1 1 Core . | . . . Reactor . | . . . Propulsion 2 | . . 2 Treads 2 | . . 2 Leg . | . . . Wheel . | . . . Hover . | . . . Flight . | . . . Utility 7 | . 5 2 Device 3 | . 1 2 Storage 4 | . 4 . Processor . | . . . Hackware . | . . . Protection . | . . . Artifact . | . . . Weapon 6 | . 1 5 Energy Gun 1 | . . 1 Energy Cannon . | . . . Ballistic Gun 3 | . 1 2 Ballistic Cannon . | . . . Launcher 1 | . . 1 Special Weapon . | . . . Impact Weapon 1 | . . 1 Slashing Weapon . | . . . Piercing Weapon . | . . . Special Melee Weapon . | . . . Unidentified Prototypes . | . . . Parts Lost 5 | . 1 4 Power 1 | . . 1 Propulsion 1 | . . 1 Utility . | . . . Weapon 3 | . 1 2 Highest Loss Streak 4 | . 1 4 Average Slot Usage (%) 96 | . 96 96 Engine 12 | . 14 10 Treads 4 | . . 15 Leg 20 | . 28 5 Device 12 | . 7 21 Storage 18 | . 17 22 Energy Gun 9 | . 14 . Ballistic Gun 13 | . 14 13 Impact Weapon 2 | . . 6 Naked Turns . | . . . Heaviest Build 45 | 10 40 45 Greatest Support 40 | 20 20 40 Greatest Overweight (x) 2 | . 1 2 Average Overweight (x) . | . . 1 Largest Inventory Capacity 16 | 6 16 16 Average Capacity 10 | 6 8 16 Most Carried 15 | 6 10 15 Average Carried 7 | 6 6 7 Final Capacity 16 | 6 16 16 Final Carried 15 | 6 8 15 Class Distribution -------------------- 100% | Mutant Dominant Class ---------------- Mutant | -10/Materials Mutant | -9/Materials Resources | -11 -10 -9 ----------- Run | Scr Mat Mat Matter Collected 569 | 212 206 151 Remotely . | . . . Salvage Created 905 | 87 558 260 Parts 54 | 1 43 10 Haulers Intercepted 6 | . 2 4 Recyclers Shooed 1 | . . 1 Parts Field Recycled . | . . . Retrieved Matter . | . . . Parts Self-Destructed . | . . . Prevented . | . . . Kills | -11 -10 -9 ------- Run | Scr Mat Mat Combat Hostiles Destroyed 14 | . 12 2 Guns 13 | . 12 1 AOE 1 | . . 1 Classes Destroyed 7 | 1 5 1 Worker 1 | . 1 . Hauler 6 | . 2 4 Recycler 2 | 1 1 . Watcher 3 | . 2 1 Swarmer 6 | . 6 . Grunt 7 | . 6 1 Duelist 1 | . . 1 Best Kill Streak 4 | 1 4 2 Combat Bots Only 3 | . 3 1 Max Kills in Single Turn 2 | 1 2 1 Gunslinging 1 | . 1 . Exploded 1 | . . 1 Melee . | . . . Uniques/NPCs Destroyed . | . . . Combat | -11 -10 -9 -------- Run | Scr Mat Mat Damage Taken 717 | . 360 357 Core 142 | . 52 90 Absorbed by Shields . | . . . Core Remaining (%) 89 | 100 79 . Volleys Fired 88 | 4 52 32 Largest 2 | 2 2 2 Hottest 60 | 60 60 60 Shots Fired 147 | 8 98 41 Gun 145 | 8 98 39 Cannon . | . . . Launcher 2 | . . 2 Special . | . . . Kinetic 90 | 4 52 34 Thermal 55 | 4 46 5 Explosive 2 | . . 2 Electromagnetic . | . . . Robot Hit Streak 15 | 3 15 14 Robot Miss Streak 3 | 1 3 2 Penetration Max . | . . . Secondary Targets 2 | . 2 . Max Gunslinging Chain 1 | . 1 . Shots Hit Robots 116 | 6 74 36 Core Hits 42 | 2 28 12 Critical Hits . | . . . Critical Kills . | . . . Critical Parts Destroyed . | . . . Melee Attacks 6 | . . 6 Impact 6 | . . 6 Slashing . | . . . Piercing . | . . . Sneak Attacks 4 | . . 4 Combat Hostiles . | . . . Follow-up Attacks . | . . . Damage Inflicted 1778 | 75 861 842 Guns 1318 | 75 856 387 Cannons . | . . . Explosions 154 | . . 154 Melee 301 | . . 301 Ramming 5 | . 5 . Kinetic 807 | 54 412 341 Thermal 511 | 21 444 46 Explosive 154 | . . 154 Electromagnetic . | . . . Impact 301 | . . 301 Slashing . | . . . Piercing . | . . . Highest Corruption . | . . . Average Corruption . | . . . Corruption Purged . | . . . Overload Shots . | . . . Overflow Damage 121 | . . 121 Projectiles . | . . . Explosions . | . . . Melee 121 | . . 121 Knockbacks . | . . . Impact . | . . . Kinetic . | . . . Secondary . | . . . Self-Inflicted Damage 2 | . 2 . Shots . | . . . Rammed 1 | . 1 . Targets Rammed 1 | . 1 . Kicked . | . . . Crushed . | . . . Highest Temperature 18 | 2 18 . Average Temperature 10 | 2 11 . Received Heat Transfer 147 | . 126 21 Siege Activations . | . . . Robots Corrupted . | . . . Combat Hostiles . | . . . Parts Fried 2 | . . 2 Impact Corruptions 2 | . . 2 Robots Melted . | . . . Combat Hostiles . | . . . Parts Melted 1 | . 1 . Heat Transferred 1150 | 50 1000 100 Parts Sabotaged . | . . . Parts Stolen . | . . . Parts Stripped . | . . . Power Chain Reactions . | . . . Missiles Intercepted . | . . . Alert | -11 -10 -9 ------- Run | Scr Mat Mat Peak Influence 253 | 5 253 199 Initial 102 | . 3 102 Average 121 | 2 104 163 Maximum Alert Level 1 | . 1 . Low Security (%) 92 | 100 88 100 Level 1 7 | . 11 . Level 2 . | . . . Level 3 . | . . . Level 4 . | . . . Level 5 . | . . . High Security . | . . . Max Security . | . . . Squads Dispatched 4 | . 4 . Investigation 2 | . 2 . Extermination . | . . . Reinforcement 2 | . 2 . Assault . | . . . Garrison . | . . . Intercept . | . . . Construction Impeded . | . . . Haulers Reinforced . | . . . Stealth | -11 -10 -9 --------- Run | Scr Mat Mat Distress Signals 2 | . . 2 Communications Jammed . | . . . Distress Signals . | . . . Times Spotted 39 | . 27 12 Peak Tracking Total 7 | . 3 7 Tactical Retreats 2 | . 1 1 Traps | -11 -10 -9 ------- Run | Scr Mat Mat Traps Triggered 2 | . 2 . Indirectly . | . . . Trap Hack Attempts . | . . . Triggered . | . . . Disarmed . | . . . Reprogrammed . | . . . Reused . | . . . Traps Extracted . | . . . Installed . | . . . Triggered . | . . . Machines | -11 -10 -9 ---------- Run | Scr Mat Mat Machines Disabled 1 | . 1 . Max in Single Turn 1 | . 1 . Machines Sabotaged . | . . . Garrisons Compromised . | . . . Overloaded Fab Kills . | . . . Fab Network Shutdowns . | . . . Hacking | -11 -10 -9 --------- Run | Scr Mat Mat Machines Accessed 7 | . 6 1 Terminals 6 | . 5 1 Fabricators . | . . . Repair Stations . | . . . Recycling Units 1 | . 1 . Scanalyzers . | . . . Garrison Access . | . . . Total Hacks 22 | . 19 3 Successful 13 | . 11 2 Failed 9 | . 8 1 Catastrophic . | . . . Database Lockouts . | . . . Manual 9 | . 7 2 Terminals 19 | . 16 3 Fabricators . | . . . Repair Stations . | . . . Recycling Units 3 | . 3 . Scanalyzers . | . . . Garrison Access . | . . . Terminal Hacks 11 | . 9 2 Record 2 | . 2 . Part Schematic 2 | . 1 1 Prototype ID Bank 1 | . 1 . Branch Access Points 1 | . 1 . Locate Traps 1 | . 1 . Hauler Manifests 1 | . . 1 Registered Components 1 | . 1 . Registered Prototypes 1 | . 1 . Zone Layout 1 | . 1 . Fabricator Hacks . | . . . Repair Station Hacks . | . . . Recycling Unit Hacks 1 | . 1 . Retrieve Components 1 | . 1 . Scanalyzer . | . . . Garrison Access Hacks . | . . . Unauthorized Hacks 1 | . 1 . Terminals . | . . . Fabricators . | . . . Repair Stations . | . . . Recycling Units 1 | . 1 . Monitor 1 | . 1 . Scanalyzers . | . . . Garrison Access . | . . . Data Cores Recovered . | . . . Used . | . . . Hacking Detections 5 | . 4 1 Full Trace Events . | . . . Feedback Events . | . . . Feedback Blocked . | . . . Robot Schematics Acquired . | . . . Robots Built . | . . . Matter . | . . . Time . | . . . Total Robot Build Rating . | . . . Part Schematics Acquired 2 | . 1 1 Parts Built . | . . . Matter . | . . . Time . | . . . Total Part Build Rating . | . . . Parts Repaired . | . . . Time . | . . . Parts Recycled . | . . . Recycled Matter . | . . . Retrieved Matter . | . . . Retrieved Components 1 | . 1 . Parts Scanalyzed . | . . . Part Schematics Acquired . | . . . Parts Damaged . | . . . Bothacking | -11 -10 -9 ------------ Run | Scr Mat Mat Used RIF Installer . | . . . Robots Hacked . | . . . Non-combat . | . . . Combat . | . . . Robot Hacks Applied . | . . . Relay Couplers Released . | . . . Robots Rewired . | . . . Allies Hacked . | . . . Hacks Repelled . | . . . Allies | -11 -10 -9 -------- Run | Scr Mat Mat Total Allies . | . . . Largest Group . | . . . Highest-Rated Group . | . . . Highest-Rated Ally . | . . . Total Orders . | . . . Ally Attacks . | . . . Total Damage . | . . . Kills . | . . . Allies Corrupted . | . . . Allies Melted . | . . . Intel | -11 -10 -9 ------- Run | Scr Mat Mat Robot Analysis Total . | . . . Derelict Logs Recovered . | . . . Drone Launches . | . . . Drone Recoveries . | . . . Exploration | -11 -10 -9 ------------- Run | Scr Mat Mat Turns Passed 1107 | 20 736 351 Spaces Moved 567 | 7 435 125 Core . | . . . Treads 96 | . . 96 Legs 471 | 7 435 29 Wheels . | . . . Hover . | . . . Flight . | . . . Fastest Speed 120 | 120 120 180 Average Speed 137 | 120 126 180 Slowest Speed 180 | 120 150 180 Overloaded Moves . | . . . Propulsion Burnouts . | . . . Robots Hopped . | . . . Cave-ins Triggered . | . . . Exploration Rate (%) 34 | 2 89 13 Regions Visited 2 Branch Regions . Pre-discovered Areas . | . . . Known Exits Taken . | . . . Unknown Exits Taken 2 | 1 1 . Scrap Searched . | . . . Spaces Dug . | . . . Terrain Destroyed 15 | . . 15 Melee . | . . . Projectile . | . . . AOE 15 | . . 15 Terrain Rammed . | . . . Walls Destroyed . | . . . Machines Disabled . | . . . Actions | -11 -10 -9 --------- Run | Scr Mat Mat Total 731 | 10 525 196 Wait 26 | . 17 9 Move 566 | 6 435 125 Hop . | . . . Pick Up 21 | . 7 14 Fast Attach 1 | . 1 . Attach 7 | . . 7 Detach . | . . . Swap 9 | . 6 3 Drop 7 | . 7 . Fire 88 | 4 52 32 Melee 6 | . . 6 Ram . | . . . Kick . | . . . Crush . | . . . Escape Stasis . | . . . Rewire . | . . . Trap . | . . . Miscellaneous . | . . . Route ------- -11/Scrapyard -10/Materials (discovered 4 exits: *Mat x3 / *Min) -9/Materials History --------- Turn | Location | Event 13 | -11/Scrapyard | Discovered new exit (range 3) 21 | -11/Scrapyard | Entered Materials 145 | -10/Materials | Discovered new exit (range 6) 190 | -10/Materials | Identified exit to Mines 325 | -10/Materials | Build established: Mutant 506 | -10/Materials | Discovered new exit (range 15) 726 | -10/Materials | Discovered new exit (range 16) 757 | -10/Materials | Entered another Materials area 757 | -9/Materials | Evolved 2 slots: Utility x2 882 | -9/Materials | Lost 4 parts (1p1n2w) 1108 | -9/Materials | Self-destructed Last Messages --------------- 01038_ Sneak attack on A-02 Transporter. 01038_ Destroyed Weight Redist. System. 01038_ A-02 Transporter system corrupted by crushing effect. 01039_ A-02 Transporter system terminally corrupted. 01039_ Transport Network Coupler fried. 01043_ Acquired Imp. Signal Interpreter. 01046_ Acquired Lgt. Treads. 01047_ Acquired 44 matter. 01052_ Acquired Ion Engine. 01053_ Acquired 40 matter. 01064_ Acquired Cryofiber Web. 01067_ Acquired Particle Charger. 01079_ K-01 Serf collects debris. 01084_ Sneak attack on A-02 Transporter. 01084_ Destroyed Weight Redist. System. 01084_ A-02 Transporter system corrupted by crushing effect. 01097_ Ion Engine fried. 01097_ A-02 Transporter destroyed. 01101_ C-30 ARC bursts open, deploying its payload. 01101_ G-34 Mercenary unfolds itself. Map ----- +----------------------------------------------------+ | ??????????????????# #???????????# #???????? | | ??????????????????# ###########?### #######?? | | ??????????????????# # ### # +?? | | ??????????????????# + ##### ########?? | | ??????????????????# # + ###??????? | | ??????????????????+ # """ ##### ########## | | ??????????????????# # "" """ ##### | | ??????????????????# # "T """ #???# | | ??????????????????# # "" #???# | | ??????????????????# # #???# ! | | ??????????????????# ###########???# !%! | | ??????????????????# #?????????????# ! | | ??????????????????# #?????????????# | | ??????????????????#% #?????######### | | ??????????????????# ??????#**!!!!## | | ??????????????????#g ??????#**! !## | | ??????????????????# ??????# ## | | ???????????##+##### g####### ## | | ??????????# ! | | ??????????# ! ! " | | ??????????# !!!! " | | ??????????# ################# " | | ??????????# #???????????????? | | ????????? [[= #########???????? | | ????????? [%[ +???????? | | ?????????? lg [w @##### #????????? | | ?????????? #########/#????????????????? " | | ??????????? ?????????# ????????????????? " | | ??????????? ? ??????????# ?????????????????? " | | ????????????????????????# ?????????????????? | | ????????????????????????# ?????????????????? | | ????????????????????????# ??????????????????? ? | | ????????????????????????# ????????????????????? | | ????????????????????????# #???????????????????? | | ????????????????????????? #???????????????????? | | ????????????????????????? #???????????????????? | | ?????????????????????????#+###???????????????????? | | ?????????????????????????????????????????????????? | | ?????????????????????????????????????????????????? | | ?????????????????????????????????????????????????? | | ?????????????????????????????????????????????????? | | ?????????????????????????????????????????????????? | | ?????????????????????????????????????????????????? | | ?????????????????????????????????????????????????? | | ?????????????????????????????????????????????????? | | ?????????????????????????????????????????????????? | | ?????????????????????????????????????????????????? | | ?????????????????????????????????????????????????? | | ?????????????????????????????????????????????????? | | ?????????????????????????????????????????????????? | +----------------------------------------------------+ Best States ------------- Heat Dissipation 38 Energy Generation 10 Energy Capacity 250 Matter Stores 300 Matter Capacity 300 Sight Range 16 Terrain Scan Density 10 ECM Strength 1 Evasion (%) 40 Recoil Reduction 2 Item Schematics ----------------- Datajack | -10/Materials | Hacked Hcp. Storage Unit | -9/Materials | Hacked Robot Schematics ------------------ None Fabricated ------------ Nothing Alien Tech Used ----------------- None Achievements -------------- None Challenges ------------ None Game ------ Seed BarrageQuantumTearclaws Manual? 0 Play Time 00:26:24 Cumulative 34.5 hours Start 2021.02.25 @ 07:21:35 End 2021.03.08 @ 19:26:38 Sessions 5 Manual Loads 0 Difficulty Rogue Special Mode None Game No. 14 Rogue 14 Adventurer 0 Explorer 0 Win Type - Total 0 Types 0/0/0/0/0/0/0/0/0 Lore% 23 Gallery% 33 Achievement% 26 Wizard Run 0 Options --------- ASCII 0 Keyboard 0 Movement Numpad Keybinds 0 Fullscreen 1 Font 20/SmallcapsGlow Map View 66x50 Tactical HUD 1 Map Filters NONE Filters NONE Steam 1 RUN: b2bf79d7-490f-452f-92a9-1881ce06c97b